fUSD/lending_fUSD_20250609
["ID","MTS","AMOUNT","RATE_DAILY","PERIOD"]
[365049064,1749427285662,594.71,0.00015706,2]
[365049068,1749427831744,-1010.66891909,0.0001712,7]
[365049069,1749427831755,-204.0,0.00017218,2]
[365049070,1749427831764,-600.0,0.00017324,4]
[365049071,1749427831773,-318.86067539,0.00017482,4]
[365049072,1749427831807,-281.13932461,0.00017482,4]
[365049073,1749427831817,-1200.0,0.00017527,2]
[365049074,1749427831827,-7785.7983235,0.00017528,2]
[365049075,1749427831837,-185.95,0.00017578,2]
[365049076,1749427831847,-1000.0,0.00017618,2]
[365049077,1749427831856,-6178.61,0.00017619,2]
[365049078,1749427831865,-500.0,0.000177,2]
[365049079,1749427831874,-2612.76,0.00017706,2]
[365049080,1749427831883,-182.77,0.00017713,2]
[365049081,1749427831893,-176.76,0.00017713,2]
[365049083,1749427831902,-2322.43425602,0.000179,2]
[365049084,1749427831912,-594.71,0.0001797,2]
[365049085,1749427831922,-458.15,0.00018,2]
[365049086,1749427831932,-2322.43425576,0.00018072,2]
[365049087,1749427831941,-164.28,0.00018174,2]
[365049089,1749427831950,-2322.43425576,0.00018245,2]
[365049091,1749427831960,-2322.43425576,0.00018417,2]
[365049092,1749427831970,-801.0,0.00018432,2]
[365049093,1749427831979,-636.0,0.00018432,2]
[365049094,1749427831989,-999.99,0.00018533,2]
[365049095,1749427831998,-2472.31,0.00018533,2]
[365049096,1749427832007,-150.99,0.00018533,2]
[365049097,1749427832017,-1480.0,0.00018533,2]
[365049098,1749427832026,-489.48,0.00018533,2]
[365049099,1749427832035,-150.99,0.00018533,2]
[365049100,1749427832045,-207.4,0.00018565,2]
[365049101,1749427832055,-2322.43425576,0.0001859,2]
[365049102,1749427832064,-5000.0,0.00018594,2]
[365049103,1749427832073,-444.28,0.00018595,2]
[365049104,1749427832083,-187.49922482,0.00018673,2]
[365049105,1749427832092,-161.45243125,0.00018673,2]
[365049106,1749427832101,-151.0,0.00018682,2]
[365049107,1749427832111,-254.19,0.00018684,2]
[365049108,1749427832121,-176.98735001,0.00018692,2]
[365049109,1749427832130,-480.0,0.00018693,2]
[365049110,1749427832140,-480.0,0.00018693,2]
[365049111,1749427832149,-480.0,0.00018693,2]
[365049112,1749427832159,-480.0,0.00018693,2]
[365049113,1749427832169,-480.0,0.00018693,2]
[365049114,1749427832179,-480.0,0.00018693,2]
[365049115,1749427832188,-480.0,0.00018693,2]
[365049117,1749427832198,-480.0,0.00018693,2]
[365049119,1749427832208,-480.0,0.00018693,2]
[365049121,1749427832217,-480.0,0.00018693,2]
[365049122,1749427832226,-480.0,0.00018693,2]
[365049124,1749427832235,-482.41,0.00018693,2]
[365049126,1749427832245,-480.0,0.00018693,2]
[365049128,1749427832254,-500.0,0.00018693,2]
[365049130,1749427832264,-480.0,0.00018693,2]
[365049132,1749427832273,-480.0,0.00018693,2]
[365049134,1749427832282,-480.0,0.00018693,2]
[365049136,1749427832291,-420.0,0.00018693,2]
[365049138,1749427832300,-480.0,0.00018693,2]
[365049140,1749427832310,-480.0,0.00018693,2]
[365049142,1749427832319,-480.0,0.00018693,2]
[365049144,1749427832328,-420.0,0.00018693,2]
[365049146,1749427832338,-859.25,0.00018693,2]
[365049148,1749427832347,-420.0,0.00018693,2]
[365049150,1749427832356,-480.0,0.00018693,2]
[365049152,1749427832365,-480.0,0.00018693,2]
[365049154,1749427832375,-480.0,0.00018693,2]
[365049155,1749427832384,-480.0,0.00018693,2]
[365049157,1749427832393,-480.0,0.00018693,2]
[365049159,1749427832403,-426.0876091,0.00018693,2]
[365049161,1749427832411,-480.0,0.00018693,2]
[365049163,1749427832421,-480.0,0.00018693,2]
[365049165,1749427832430,-480.0,0.00018693,2]
[365049167,1749427832440,-480.0,0.00018693,2]
[365049169,1749427832449,-480.0,0.00018693,2]
[365049171,1749427832459,-480.0,0.00018693,2]
[365049173,1749427832468,-480.0,0.00018693,2]
[365049175,1749427832477,-480.0,0.00018693,2]
[365049177,1749427832486,-480.0,0.00018693,2]
[365049179,1749427832496,-480.0,0.00018693,2]
[365049181,1749427832506,-480.0,0.00018693,2]
[365049183,1749427832515,-480.0,0.00018693,2]
[365049185,1749427832524,-420.0,0.00018693,2]
[365049187,1749427832534,-480.0,0.00018693,2]
[365049189,1749427832543,-480.0,0.00018693,2]
[365049190,1749427832553,-480.0,0.00018693,2]
[365049192,1749427832563,-691.74,0.00018693,2]
[365049194,1749427832573,-480.0,0.00018693,2]
[365049196,1749427832582,-256.34,0.00018693,2]
[365049198,1749427832591,-480.0,0.00018693,2]
[365049200,1749427832601,-480.0,0.00018693,2]
[365049202,1749427832611,-480.0,0.00018693,2]
[365049204,1749427832620,-406.04720151,0.00018693,2]
[365049533,1749427839916,-73.95279849,0.00018693,2]
[365049536,1749427839926,-1304.9,0.00018693,2]
[365049538,1749427839936,-480.0,0.00018693,2]
[365049539,1749427839945,-480.0,0.00018693,2]
[365049541,1749427839955,-480.0,0.00018693,2]
[365049543,1749427839964,-480.0,0.00018693,2]
[365049545,1749427839974,-480.0,0.00018693,2]
[365049547,1749427839983,-550.46,0.00018693,2]
[365049549,1749427839993,-480.0,0.00018693,2]
[365049551,1749427840002,-480.0,0.00018693,2]
[365049553,1749427840012,-480.0,0.00018693,2]
[365049556,1749427840023,-480.0,0.00018693,2]
[365049558,1749427840032,-480.0,0.00018693,2]
[365049559,1749427840042,-573.28,0.00018693,2]
[365049561,1749427840051,-846.62,0.00018693,2]
[365049563,1749427840060,-480.0,0.00018693,2]
[365049565,1749427840071,-480.0,0.00018693,2]
[365049567,1749427840080,-480.0,0.00018693,2]
[365049569,1749427840091,-480.0,0.00018693,2]
[365049572,1749427840101,-480.0,0.00018693,2]
[365049574,1749427840111,-480.0,0.00018693,2]
[365049575,1749427840120,-1165.27,0.00018693,2]
[365049577,1749427840130,-480.0,0.00018693,2]
[365049579,1749427840139,-480.0,0.00018693,2]
[365049581,1749427840149,-420.0,0.00018693,2]
[365049583,1749427840158,-480.0,0.00018693,2]
[365049585,1749427840167,-420.0,0.00018693,2]
[365049587,1749427840177,-480.0,0.00018693,2]
[365049589,1749427840186,-480.0,0.00018693,2]
[365049591,1749427840195,-480.0,0.00018693,2]
[365049593,1749427840204,-575.23,0.00018693,2]
[365049595,1749427840214,-480.0,0.00018693,2]
[365049597,1749427840223,-599.95,0.00018693,2]
[365049599,1749427840232,-480.0,0.00018693,2]
[365049601,1749427840241,-480.0,0.00018693,2]
[365049603,1749427840251,-480.0,0.00018693,2]
[365049605,1749427840260,-970.64,0.00018693,2]
[365049607,1749427840269,-425.80394122,0.00018693,2]
[365049609,1749427840279,-480.0,0.00018693,2]
[365049611,1749427840289,-587.24,0.00018693,2]
[365049613,1749427840298,-480.0,0.00018693,2]
[365049615,1749427840307,-480.0,0.00018693,2]
[365049617,1749427840317,-480.0,0.00018693,2]
[365049619,1749427840330,-480.0,0.00018693,2]
[365049621,1749427840340,-480.0,0.00018693,2]
[365049623,1749427840349,-420.74862744,0.00018693,2]
[365049625,1749427840359,-746.73,0.00018693,2]
[365049627,1749427840368,-480.0,0.00018693,2]
[365049629,1749427840379,-480.0,0.00018693,2]
[365049631,1749427840389,-480.0,0.00018693,2]
[365049633,1749427840399,-159.77175369,0.00018693,2]
[365049635,1749427840409,-480.0,0.00018693,2]
[365049636,1749427840418,-480.0,0.00018693,2]
[365049638,1749427840427,-480.0,0.00018693,2]
[365049640,1749427840436,-499.38,0.00018693,2]
[365049643,1749427840447,-480.0,0.00018693,2]
[365049644,1749427840455,-480.0,0.00018693,2]
[365049646,1749427840465,-480.0,0.00018693,2]
[365049648,1749427840474,-480.0,0.00018693,2]
[365049650,1749427840484,-480.0,0.00018693,2]
[365049652,1749427840493,-480.0,0.00018693,2]
[365049654,1749427840502,-480.0,0.00018693,2]
[365049656,1749427840511,-480.0,0.00018693,2]
[365049658,1749427840520,-510.54835393,0.00018693,2]
[365049660,1749427840530,-480.0,0.00018693,2]
[365049662,1749427840539,-480.0,0.00018693,2]
[365049664,1749427840549,-480.0,0.00018693,2]
[365049666,1749427840558,-480.0,0.00018693,2]
[365049668,1749427840568,-608.12,0.00018693,2]
[365049670,1749427840582,-480.0,0.00018693,2]
[365049672,1749427840591,-480.0,0.00018693,2]
[365049674,1749427840601,-480.0,0.00018693,2]
[365049676,1749427840610,-480.0,0.00018693,2]
[365049678,1749427840619,-480.0,0.00018693,2]
[365049680,1749427840628,-480.0,0.00018693,2]
[365049682,1749427840637,-480.0,0.00018693,2]
[365049684,1749427840646,-480.0,0.00018693,2]
[365049686,1749427840655,-420.0,0.00018693,2]
[365049688,1749427840665,-480.0,0.00018693,2]
[365049690,1749427840674,-480.0,0.00018693,2]
[365049692,1749427840689,-480.0,0.00018693,2]
[365049694,1749427840702,-480.0,0.00018693,2]
[365049696,1749427840713,-420.0,0.00018693,2]
[365049698,1749427840722,-480.0,0.00018693,2]
[365049700,1749427840731,-480.0,0.00018693,2]
[365049702,1749427840741,-480.0,0.00018693,2]
[365049704,1749427840753,-480.0,0.00018693,2]
[365049706,1749427840762,-480.0,0.00018693,2]
[365049708,1749427840771,-480.0,0.00018693,2]
[365049710,1749427840780,-480.0,0.00018693,2]
[365049712,1749427840790,-344.36557895,0.00018693,2]
[365049714,1749427840799,-480.0,0.00018693,2]
[365049715,1749427840808,-480.0,0.00018693,2]
[365049717,1749427840817,-480.0,0.00018693,2]
[365049719,1749427840829,-480.0,0.00018693,2]
[365049721,1749427840838,-480.0,0.00018693,2]
[365049723,1749427840848,-480.0,0.00018693,2]
[365049724,1749427840857,-480.0,0.00018693,2]
[365049726,1749427840867,-480.0,0.00018693,2]
[365049728,1749427840875,-480.0,0.00018693,2]
[365049730,1749427840884,-480.0,0.00018693,2]
[365049732,1749427840894,-480.0,0.00018693,2]
[365049734,1749427840905,-569.6713725,0.00018693,2]
[365049736,1749427840914,-480.0,0.00018693,2]
[365049737,1749427840923,-480.0,0.00018693,2]
[365049739,1749427840933,-541.18,0.00018693,2]
[365049741,1749427840942,-480.0,0.00018693,2]
[365049743,1749427840951,-480.0,0.00018693,2]
[365049745,1749427840960,-480.0,0.00018693,2]
[365049747,1749427840969,-533.66437448,0.00018693,2]
[365049749,1749427840979,-480.0,0.00018693,2]
[365049751,1749427840988,-480.0,0.00018693,2]
[365049753,1749427840998,-480.0,0.00018693,2]
[365049755,1749427841007,-656.77,0.00018693,2]
[365049757,1749427841016,-480.0,0.00018693,2]
[365049759,1749427841026,-514.83,0.00018693,2]
[365049761,1749427841035,-480.0,0.00018693,2]
[365049763,1749427841044,-480.0,0.00018693,2]
[365049764,1749427841053,-480.0,0.00018693,2]
[365049765,1749427841062,-480.0,0.00018693,2]
[365049766,1749427841072,-344.85470472,0.00018693,2]
[365049767,1749427841081,-480.0,0.00018693,2]
[365049768,1749427841090,-480.0,0.00018693,2]
[365049769,1749427841100,-480.0,0.00018693,2]
[365049770,1749427841109,-480.0,0.00018693,2]
[365049771,1749427841119,-480.0,0.00018693,2]
[365049772,1749427841128,-480.0,0.00018693,2]
[365049773,1749427841137,-480.0,0.00018693,2]
[365049774,1749427841146,-480.0,0.00018693,2]
[365049775,1749427841156,-480.0,0.00018693,2]
[365049776,1749427841165,-480.0,0.00018693,2]
[365049777,1749427841174,-480.0,0.00018693,2]
[365049778,1749427841184,-480.0,0.00018693,2]
[365049779,1749427841193,-480.0,0.00018693,2]
[365049780,1749427841202,-480.0,0.00018693,2]
[365049782,1749427841211,-480.0,0.00018693,2]
[365049784,1749427841220,-480.0,0.00018693,2]
[365049786,1749427841230,-1015.18,0.00018693,2]
[365049788,1749427841239,-480.0,0.00018693,2]
[365049790,1749427841248,-480.0,0.00018693,2]
[365049792,1749427841258,-480.0,0.00018693,2]
[365049794,1749427841267,-480.0,0.00018693,2]
[365049796,1749427841277,-510.48,0.00018693,2]
[365049798,1749427841286,-480.0,0.00018693,2]
[365049799,1749427841295,-480.0,0.00018693,2]
[365049801,1749427841304,-480.0,0.00018693,2]
[365049803,1749427841313,-549.87,0.00018693,2]
[365049805,1749427841323,-480.0,0.00018693,2]
[365049807,1749427841332,-480.0,0.00018693,2]
[365049809,1749427841341,-480.0,0.00018693,2]
[365049811,1749427841351,-480.0,0.00018693,2]
[365049813,1749427841360,-480.0,0.00018693,2]
[365049815,1749427841370,-480.0,0.00018693,2]
[365049817,1749427841380,-480.0,0.00018693,2]
[365049819,1749427841389,-480.0,0.00018693,2]
[365049821,1749427841399,-480.0,0.00018693,2]
[365049823,1749427841408,-480.0,0.00018693,2]
[365049825,1749427841417,-480.0,0.00018693,2]
[365049827,1749427841426,-480.0,0.00018693,2]
[365049828,1749427841436,-524.49,0.00018693,2]
[365049830,1749427841445,-480.0,0.00018693,2]
[365049832,1749427841454,-480.0,0.00018693,2]
[365049834,1749427841463,-471.7998666,0.00018693,2]
[365049836,1749427841473,-480.0,0.00018693,2]
[365049856,1749427841651,-480.0,0.00018693,2]
[365049858,1749427841660,-480.0,0.00018693,2]
[365049860,1749427841670,-476.5367439,0.00018693,2]
[365049861,1749427841679,-480.0,0.00018693,2]
[365049863,1749427841689,-522.38,0.00018693,2]
[365049865,1749427841698,-318.81220097,0.00018693,2]
[365049867,1749427841707,-480.0,0.00018693,2]
[365049869,1749427841717,-480.0,0.00018693,2]
[365049871,1749427841726,-480.0,0.00018693,2]
[365049873,1749427841735,-480.0,0.00018693,2]
[365049875,1749427841746,-480.0,0.00018693,2]
[365049877,1749427841757,-480.0,0.00018693,2]
[365049879,1749427841766,-1024.3,0.00018693,2]
[365049881,1749427841776,-480.0,0.00018693,2]
[365049883,1749427841785,-480.0,0.00018693,2]
[365049885,1749427841795,-530.22,0.00018693,2]
[365049887,1749427841804,-480.0,0.00018693,2]
[365049889,1749427841814,-480.0,0.00018693,2]
[365049891,1749427841823,-480.0,0.00018693,2]
[365049893,1749427841832,-480.0,0.00018693,2]
[365049895,1749427841841,-480.0,0.00018693,2]
[365049897,1749427841850,-480.0,0.00018693,2]
[365049899,1749427841859,-507.75,0.00018693,2]
[365049901,1749427841869,-480.0,0.00018693,2]
[365049902,1749427841878,-480.0,0.00018693,2]
[365049904,1749427841887,-620.47,0.00018693,2]
[365049906,1749427841896,-480.0,0.00018693,2]
[365049908,1749427841906,-694.69,0.00018693,2]
[365049910,1749427841915,-757.81,0.00018693,2]
[365049912,1749427841924,-480.0,0.00018693,2]
[365049914,1749427841934,-480.0,0.00018693,2]
[365049916,1749427841943,-1907.22,0.00018693,2]
[365049918,1749427841953,-480.0,0.00018693,2]
[365049920,1749427841962,-731.25,0.00018693,2]
[365049922,1749427841971,-480.0,0.00018693,2]
[365049924,1749427841980,-405.43429551,0.00018693,2]
[365049925,1749427841990,-1257.91,0.00018693,2]
[365049927,1749427841999,-480.0,0.00018693,2]
[365049929,1749427842008,-667.25,0.00018693,2]
[365049931,1749427842018,-480.0,0.00018693,2]
[365049933,1749427842028,-480.0,0.00018693,2]
[365049935,1749427842038,-480.0,0.00018693,2]
[365049937,1749427842047,-340.0,0.00018693,2]
[365049939,1749427842057,-625.23,0.00018693,2]
[365049941,1749427842066,-480.0,0.00018693,2]
[365049943,1749427842076,-480.0,0.00018693,2]
[365049945,1749427842086,-584.97,0.00018693,2]
[365049947,1749427842096,-480.0,0.00018693,2]
[365049949,1749427842106,-665.04,0.00018693,2]
[365049951,1749427842116,-480.0,0.00018693,2]
[365049953,1749427842125,-922.23,0.00018693,2]
[365049955,1749427842135,-480.0,0.00018693,2]
[365049957,1749427842144,-480.0,0.00018693,2]
[365049959,1749427842154,-4762.67,0.00018693,2]
[365049961,1749427842163,-626.04,0.00018693,2]
[365049962,1749427842172,-480.0,0.00018693,2]
[365049964,1749427842181,-918.36,0.00018693,2]
[365049966,1749427842191,-480.0,0.00018693,2]
[365049968,1749427842200,-480.0,0.00018693,2]
[365049970,1749427842209,-556.85,0.00018693,2]
[365049972,1749427842218,-423.98809065,0.00018693,2]
[365049974,1749427842227,-480.0,0.00018693,2]
[365049976,1749427842236,-516.91,0.00018693,2]
[365049978,1749427842245,-480.0,0.00018693,2]
[365049980,1749427842254,-480.0,0.00018693,2]
[365049982,1749427842263,-480.0,0.00018693,2]
[365049984,1749427842272,-480.0,0.00018693,2]
[365049986,1749427842282,-480.0,0.00018693,2]
[365049988,1749427842291,-634.6,0.00018693,2]
[365049990,1749427842300,-291.40367561,0.00018693,2]
[365049992,1749427842309,-480.0,0.00018693,2]
[365049994,1749427842318,-480.0,0.00018693,2]
[365049996,1749427842328,-743.22,0.00018693,2]
[365049998,1749427842337,-424.14722443,0.00018693,2]
[365050000,1749427842347,-480.0,0.00018693,2]
[365050002,1749427842356,-480.0,0.00018693,2]
[365050003,1749427842365,-422.9560245,0.00018693,2]
[365050005,1749427842376,-875.91,0.00018693,2]
[365050007,1749427842385,-420.0,0.00018693,2]
[365050009,1749427842395,-480.0,0.00018693,2]
[365050011,1749427842404,-589.96,0.00018693,2]
[365050014,1749427842413,-480.0,0.00018693,2]
[365050017,1749427842422,-480.0,0.00018693,2]
[365050019,1749427842431,-480.0,0.00018693,2]
[365050021,1749427842441,-480.0,0.00018693,2]
[365050023,1749427842450,-480.0,0.00018693,2]
[365050025,1749427842459,-430.81318023,0.00018693,2]
[365050027,1749427842468,-480.0,0.00018693,2]
[365050029,1749427842477,-480.0,0.00018693,2]
[365050031,1749427842487,-480.0,0.00018693,2]
[365050033,1749427842496,-480.0,0.00018693,2]
[365050035,1749427842505,-1146.57,0.00018693,2]
[365050037,1749427842514,-480.0,0.00018693,2]
[365050039,1749427842523,-574.04710252,0.00018693,2]
[365050040,1749427842532,-986.46,0.00018693,2]
[365050042,1749427842541,-629.46742283,0.00018693,2]
[365050044,1749427842550,-480.0,0.00018693,2]
[365050046,1749427842559,-480.0,0.00018693,2]
[365050048,1749427842568,-480.0,0.00018693,2]
[365050050,1749427842577,-582.68,0.00018693,2]
[365050052,1749427842587,-954.83,0.00018693,2]
[365050054,1749427842596,-480.0,0.00018693,2]
[365050056,1749427842606,-480.0,0.00018693,2]
[365050058,1749427842615,-475.21244635,0.00018693,2]
[365050061,1749427842626,-587.24357069,0.00018693,2]
[365050064,1749427842635,-480.0,0.00018693,2]
[365050067,1749427842644,-480.0,0.00018693,2]
[365050070,1749427842653,-480.0,0.00018693,2]
[365050073,1749427842663,-480.0,0.00018693,2]
[365050074,1749427842672,-1075.19,0.00018693,2]
[365050077,1749427842681,-480.0,0.00018693,2]
[365050079,1749427842691,-663.56,0.00018693,2]
[365050081,1749427842700,-480.0,0.00018693,2]
[365050083,1749427842710,-480.0,0.00018693,2]
[365050085,1749427842719,-480.0,0.00018693,2]
[365050087,1749427842729,-480.0,0.00018693,2]
[365050089,1749427842738,-577.91,0.00018693,2]
[365050091,1749427842749,-431.28397702,0.00018693,2]
[365050093,1749427842759,-984.98,0.00018693,2]
[365050095,1749427842768,-480.0,0.00018693,2]
[365050097,1749427842777,-480.0,0.00018693,2]
[365050099,1749427842786,-686.31,0.00018693,2]
[365050101,1749427842797,-1104.14,0.00018693,2]
[365050102,1749427842806,-480.0,0.00018693,2]
[365050104,1749427842816,-480.0,0.00018693,2]
[365050106,1749427842826,-480.0,0.00018693,2]
[365050108,1749427842836,-480.0,0.00018693,2]
[365050110,1749427842845,-480.0,0.00018693,2]
[365050112,1749427842855,-919.63,0.00018693,2]
[365050114,1749427842864,-480.0,0.00018693,2]
[365050116,1749427842873,-575.12,0.00018693,2]
[365050118,1749427842884,-1497.65,0.00018693,2]
[365050120,1749427842893,-480.0,0.00018693,2]
[365050122,1749427842902,-480.0,0.00018693,2]
[365050124,1749427842912,-480.0,0.00018693,2]
[365050126,1749427842921,-429.1490615,0.00018693,2]
[365050127,1749427842930,-539.01,0.00018693,2]
[365050129,1749427842939,-933.84,0.00018693,2]
[365050131,1749427842948,-480.0,0.00018693,2]
[365050132,1749427842958,-814.01,0.00018693,2]
[365050134,1749427842967,-618.59,0.00018693,2]
[365050136,1749427842977,-425.11372056,0.00018693,2]
[365050138,1749427842988,-1727.89,0.00018693,2]
[365050140,1749427842997,-220.0,0.00018693,2]
[365050141,1749427843006,-480.0,0.00018693,2]
[365050143,1749427843016,-480.0,0.00018693,2]
[365050145,1749427843025,-480.0,0.00018693,2]
[365050147,1749427843034,-480.0,0.00018693,2]
[365050149,1749427843044,-481.04,0.00018693,2]
[365050151,1749427843052,-2360.84,0.00018693,2]
[365050153,1749427843062,-480.0,0.00018693,2]
[365050155,1749427843072,-480.0,0.00018693,2]
[365050157,1749427843084,-480.0,0.00018693,2]
[365050159,1749427843093,-480.0,0.00018693,2]
[365050161,1749427843103,-480.0,0.00018694,2]
[365050163,1749427843113,-480.0,0.00018694,2]
[365050165,1749427843123,-480.0,0.00018694,2]
[365050167,1749427843133,-483.56,0.00018694,2]
[365050169,1749427843143,-480.0,0.00018694,2]
[365050171,1749427843152,-480.0,0.00018694,2]
[365050172,1749427843161,-480.0,0.00018694,2]
[365050174,1749427843171,-480.0,0.00018694,2]
[365050176,1749427843180,-480.0,0.00018694,2]
[365050178,1749427843190,-480.0,0.00018694,2]
[365050180,1749427843199,-420.0,0.00018694,2]
[365050182,1749427843208,-480.0,0.00018694,2]
[365050184,1749427843217,-480.0,0.00018694,2]
[365050186,1749427843227,-423.71445515,0.00018694,2]
[365050188,1749427843236,-480.0,0.00018694,2]
[365050190,1749427843245,-480.0,0.00018694,2]
[365050192,1749427843254,-480.0,0.00018694,2]
[365050194,1749427843263,-589.73796799,0.00018694,2]
[365050196,1749427843272,-480.0,0.00018694,2]
[365050198,1749427843282,-480.0,0.00018694,2]
[365050199,1749427843291,-487.93993582,0.00018694,2]
[365050201,1749427843301,-480.0,0.00018694,2]
[365050203,1749427843310,-480.0,0.00018694,2]
[365050205,1749427843319,-624.6929877,0.00018694,2]
[365050208,1749427843329,-480.0,0.00018694,2]
[365050210,1749427843339,-423.05468877,0.00018694,2]
[365050212,1749427843348,-328.89824682,0.00018694,2]
[365050214,1749427843357,-480.0,0.00018694,2]
[365050216,1749427843367,-480.0,0.00018694,2]
[365050218,1749427843376,-480.0,0.00018694,2]
[365050220,1749427843384,-480.0,0.00018694,2]
[365050221,1749427843394,-480.0,0.00018694,2]
[365050223,1749427843403,-480.0,0.00018694,2]
[365050225,1749427843413,-546.81887807,0.00018694,2]
[365050227,1749427843422,-427.77598265,0.00018694,2]
[365050229,1749427843431,-480.0,0.00018694,2]
[365050231,1749427843440,-480.0,0.00018694,2]
[365050233,1749427843449,-480.0,0.00018694,2]
[365050235,1749427843459,-480.0,0.00018694,2]
[365050237,1749427843468,-480.0,0.00018694,2]
[365050239,1749427843477,-480.0,0.00018694,2]
[365050241,1749427843486,-480.0,0.00018694,2]
[365050243,1749427843495,-480.0,0.00018694,2]
[365050245,1749427843504,-480.0,0.00018694,2]
[365050246,1749427843513,-480.0,0.00018694,2]
[365050248,1749427843523,-480.0,0.00018694,2]
[365050250,1749427843533,-480.0,0.00018694,2]
[365050252,1749427843542,-480.0,0.00018694,2]
[365050254,1749427843551,-531.54,0.00018694,2]
[365050256,1749427843561,-480.0,0.00018694,2]
[365050258,1749427843570,-480.0,0.00018694,2]
[365050260,1749427843580,-480.0,0.00018694,2]
[365050262,1749427843589,-480.0,0.00018694,2]
[365050264,1749427843598,-480.0,0.00018694,2]
[365050266,1749427843606,-480.0,0.00018694,2]
[365050268,1749427843615,-480.0,0.00018694,2]
[365050270,1749427843624,-420.0,0.00018694,2]
[365050272,1749427843634,-480.0,0.00018694,2]
[365050274,1749427843642,-480.0,0.00018694,2]
[365050275,1749427843651,-480.0,0.00018694,2]
[365050277,1749427843660,-480.0,0.00018694,2]
[365050279,1749427843669,-480.0,0.00018694,2]
[365050281,1749427843678,-480.0,0.00018694,2]
[365050283,1749427843687,-480.0,0.00018694,2]
[365050285,1749427843696,-498.96356926,0.00018694,2]
[365050287,1749427843705,-480.0,0.00018694,2]
[365050289,1749427843714,-480.0,0.00018694,2]
[365050291,1749427843724,-480.0,0.00018694,2]
[365050293,1749427843733,-480.0,0.00018694,2]
[365050295,1749427843743,-480.0,0.00018694,2]
[365050297,1749427843755,-480.0,0.00018694,2]
[365050299,1749427843764,-480.0,0.00018694,2]
[365050301,1749427843773,-480.0,0.00018694,2]
[365050303,1749427843782,-442.93440899,0.00018694,2]
[365050305,1749427843792,-480.0,0.00018694,2]
[365050307,1749427843801,-480.0,0.00018694,2]
[365050309,1749427843810,-480.0,0.00018694,2]
[365050311,1749427843819,-480.0,0.00018694,2]
[365050313,1749427843829,-480.0,0.00018694,2]
[365050315,1749427843838,-480.0,0.00018694,2]
[365050317,1749427843848,-422.33593073,0.00018694,2]
[365050318,1749427843857,-480.0,0.00018694,2]
[365050320,1749427843866,-480.0,0.00018694,2]
[365050322,1749427843875,-480.0,0.00018694,2]
[365050324,1749427843885,-480.0,0.00018694,2]
[365050326,1749427843895,-480.0,0.00018694,2]
[365050328,1749427843904,-422.3209956,0.00018694,2]
[365050330,1749427843913,-480.0,0.00018694,2]
[365050332,1749427843923,-610.9,0.00018694,2]
[365050334,1749427843933,-480.0,0.00018694,2]